bitfinex/quotes_ETHUSD_20251015
["timestamp","ask_amount","ask_price","bid_price","bid_amount"]
[1760537661575,0.2253,4096.6,4096.5,0.002]
[1760537661940,0.2253,4096.9,4096.5,0.002]
[1760537662174,0.6336,4097.5,4096.7,7.670499]
[1760537662492,0.4529,4099.8,4096.9,4.254178]
[1760537662685,0.4529,4099.8,4097.1,4.16875077]
[1760537662894,0.4529,4099.8,4097.4,5.697724]
[1760537663079,2.43884819,4100.3,4097.6,11.555055]
[1760537663263,0.2253,4100.0,4099.2,2.43946897]
[1760537663589,0.6782,4100.4,4099.3,2.63]
[1760537663800,0.989885,4100.4,4099.4,2.629]
[1760537664089,0.536985,4100.4,4099.4,5.06837811]
[1760537664259,0.2253,4100.8,4099.9,2.43907767]
[1760537664655,0.2253,4100.8,4099.8,2.43913286]
[1760537664860,0.6336,4100.6,4099.8,2.43913286]
[1760537665200,2.43873003,4100.5,4099.4,2.629]
[1760537665486,0.96315792,4100.5,4099.2,0.2025]
[1760537665682,2.43907553,4100.0,4099.3,2.629]
[1760537665867,0.2253,4099.9,4098.7,0.2025]
[1760537666053,0.2253,4099.9,4098.8,2.629]
[1760537666054,0.6336,4099.7,4098.8,2.629]
[1760537666259,0.6336,4099.7,4098.9,2.629]
[1760537666560,0.6336,4099.7,4098.3,0.2025]
[1760537666561,0.76478,4099.7,4098.4,2.43997657]
[1760537666763,3.20398942,4099.7,4098.8,2.43973057]
[1760537666972,3.20398942,4099.7,4098.3,0.2025]
[1760537666973,0.2253,4099.9,4098.9,2.629]
[1760537667173,2.43894122,4100.2,4099.2,2.43948252]
[1760537667391,2.1809,4100.4,4098.9,5.06867825]
[1760537667392,2.43898041,4100.1,4098.9,5.06867825]
[1760537667606,3.07245814,4100.3,4099.1,2.4395399]
[1760537667797,2.3616,4100.3,4099.2,2.629]
[1760537667959,0.6336,4100.1,4099.3,2.629]
[1760537668283,0.2253,4099.4,4099.1,2.629]
[1760537668484,0.2253,4099.4,4098.3,0.2025]
[1760537668686,0.2253,4099.4,4098.7,2.43979108]
[1760537668902,0.6336,4099.3,4098.7,2.629]
[1760537669059,2.43950931,4099.2,4098.7,2.629]
[1760537669261,0.4529,4099.1,4097.9,0.2025]
[1760537669562,0.6336,4099.0,4097.9,0.2025]
[1760537669888,2.6646928,4099.4,4097.9,2.629]
[1760537669889,0.1216,4098.1,4097.9,2.629]
[1760537670058,0.1216,4098.1,4097.0,0.2025]
[1760537670260,0.1216,4097.8,4097.1,0.1216]
[1760537670461,0.1216,4097.8,4097.2,2.629]
[1760537671264,2.4404132,4097.7,4097.2,2.629]
[1760537671462,2.56194784,4097.8,4097.2,2.629]
[1760537671863,2.56194334,4097.8,4097.2,2.629]
[1760537672065,0.1216,4097.8,4097.3,2.629]
[1760537672395,2.56194535,4097.8,4097.3,2.629]
[1760537672701,2.56194535,4097.8,4097.1,0.1216]
[1760537672702,1.0865,4097.7,4097.1,0.1216]
[1760537672861,1.0865,4097.7,4096.6,0.2025]
[1760537673199,1.0865,4097.7,4096.6,0.528]
[1760537673400,2.8145,4097.7,4096.6,0.953]
[1760537673699,0.6336,4097.2,4096.6,1.357]
[1760537674282,3.07434245,4097.2,4096.6,1.357]
[1760537674483,0.6336,4097.3,4096.6,1.357]
[1760537674684,0.6336,4097.8,4096.7,2.44098908]
[1760537674909,0.6336,4097.8,4096.9,2.44081584]
[1760537675112,0.6782,4098.2,4096.6,1.73701536]
[1760537675318,0.6782,4098.2,4096.7,2.44098908]
[1760537675319,0.2253,4098.2,4096.7,2.44098908]
[1760537675529,0.2253,4098.2,4096.6,1.357]
[1760537675814,2.44015763,4098.1,4097.2,2.44068733]
[1760537676212,2.66542106,4098.2,4096.7,0.2025]
[1760537676416,0.2253,4098.2,4096.7,0.2025]
[1760537676619,0.6336,4098.2,4097.4,2.44056784]
[1760537676915,0.6336,4098.4,4097.5,2.629]
[1760537677116,0.2198,4098.5,4097.5,2.629]
[1760537677284,2.44005881,4098.3,4097.5,2.629]
[1760537677482,2.65975818,4098.5,4097.5,2.629]
[1760537677714,0.2198,4098.5,4097.5,5.06949779]
[1760537678291,2.44002292,4098.4,4097.5,5.06949779]
[1760537678520,2.44004084,4098.3,4097.5,5.06949779]
[1760537678889,2.43998228,4098.4,4097.5,5.06949779]
[1760537679085,0.2198,4098.5,4097.5,2.629]
[1760537679285,2.44028328,4097.9,4097.1,0.002]
[1760537679519,2.44041714,4097.7,4097.4,2.629]
[1760537679721,0.2198,4098.5,4097.1,0.002]
[1760537679722,0.4498,4097.6,4097.1,0.002]
[1760537679887,2.44066125,4097.3,4097.1,2.631]
[1760537680085,2.8904912,4097.2,4097.1,2.631]
[1760537680416,0.4498,4097.2,4097.1,2.631]
[1760537680592,2.44062887,4097.4,4097.1,2.631]
[1760537680798,0.6336,4097.8,4097.1,0.002]
[1760537680992,0.4498,4097.9,4097.1,0.002]
[1760537680993,2.44052755,4097.5,4097.1,0.002]
[1760537681193,2.44064021,4097.3,4097.1,0.002]
[1760537681407,0.4498,4097.9,4097.1,0.002]
[1760537681609,0.6336,4097.7,4097.1,0.002]
[1760537681823,2.44045294,4097.6,4097.1,0.002]
[1760537682133,2.44063556,4097.3,4097.1,0.002]
[1760537682340,0.35238529,4097.6,4097.1,0.002]
[1760537682341,3.0742912,4097.2,4097.1,0.002]
[1760537682657,5.2520912,4097.2,4097.1,0.002]
[1760537682930,4.1686912,4097.2,4097.1,0.002]
[1760537683115,5.2520912,4097.2,4097.1,0.002]
[1760537683498,4.8022912,4097.2,4097.1,0.002]
[1760537684028,0.80218529,4097.6,4097.1,0.002]
[1760537684331,2.44065462,4097.3,4097.1,0.002]
[1760537684708,2.4406912,4097.2,4097.1,0.002]
[1760537685129,3.07381531,4098.0,4097.1,0.002]
[1760537685434,0.6336,4097.4,4097.1,0.002]
[1760537685599,3.0742912,4097.2,4097.1,0.002]
[1760537685795,3.44508032,4097.2,4097.1,0.002]
[1760537686013,3.89488032,4097.2,4097.1,0.002]
[1760537686211,2.44134664,4096.1,4095.6,0.002]
[1760537686430,3.29498507,4095.7,4095.6,0.002]
[1760537686734,5.02298507,4095.7,4095.6,0.002]
[1760537686932,14.76596215,4095.2,4095.1,0.002]
[1760537687340,14.76596215,4095.2,4094.6,0.002]
[1760537687341,2.44241994,4094.3,4093.6,0.002]
[1760537687509,4.80401994,4094.3,4093.6,0.002]
[1760537687706,3.07637792,4093.7,4093.6,0.002]
[1760537687908,4.80437792,4093.7,4093.6,0.002]
[1760537688110,5.62496704,4093.7,4093.6,0.002]
[1760537688637,0.6336,4093.7,4093.6,0.002]
[1760537688840,0.6336,4094.3,4093.6,0.002]
[1760537689016,0.6336,4094.1,4093.6,0.002]
[1760537689338,2.44200081,4095.1,4094.0,2.442598]
[1760537689539,2.44205846,4095.0,4093.7,2.44277792]
[1760537689707,0.4498,4095.5,4094.3,2.4424133]
[1760537689903,0.4498,4096.2,4094.3,2.44241994]
[1760537690122,2.66110675,4096.2,4094.9,2.44203031]
[1760537690340,2.44147893,4095.9,4094.9,2.44200859]
[1760537690642,1.728,4096.1,4094.4,0.2105]
[1760537690807,2.44146585,4095.9,4094.7,2.44215156]
[1760537691136,0.19478,4096.0,4094.5,2.629]
[1760537691312,1.728,4096.1,4094.5,2.629]
[1760537691513,0.6336,4096.1,4094.8,2.44209949]
[1760537691714,2.3616,4095.6,4094.7,2.44217923]
[1760537691915,0.6336,4095.6,4094.8,2.44206525]
[1760537692147,0.2198,4096.2,4094.5,2.8395]
[1760537692305,2.44159642,4095.7,4094.6,2.726191]
[1760537692509,0.2198,4097.1,4094.6,0.28395]
[1760537692725,0.2198,4097.1,4095.7,2.44156266]
[1760537692924,2.44104272,4096.7,4095.7,2.44156266]
[1760537693139,0.2198,4097.1,4095.6,5.07058678]
[1760537693140,2.44106389,4096.6,4095.6,5.07058678]
[1760537693450,2.44113067,4096.5,4095.6,2.629]
[1760537693651,0.6336,4096.4,4095.6,2.629]
[1760537693857,0.6336,4096.3,4095.6,5.0706344]
[1760537694061,1.728,4096.8,4095.6,2.629]
[1760537694361,1.728,4096.7,4095.6,2.629]
[1760537694565,0.76085232,4096.9,4093.8,0.2105]
[1760537694566,0.6336,4095.6,4093.8,0.2105]
[1760537694754,0.6336,4094.8,4093.8,2.8395]
[1760537694952,0.6336,4094.8,4093.8,2.629]
[1760537695137,0.6336,4094.6,4093.9,0.2631]
[1760537695462,0.2371,4095.0,4093.9,0.2631]
[1760537695463,0.6336,4094.7,4093.9,0.2631]
[1760537695651,0.6336,4094.7,4093.8,2.629]
[1760537695652,2.44259892,4094.0,4093.8,2.629]
[1760537695850,0.6336,4093.8,4093.6,0.002]
[1760537696056,0.6336,4093.9,4093.6,0.002]
[1760537696251,3.07630374,4093.9,4093.6,0.002]
[1760537696556,0.6336,4093.7,4093.6,0.002]
[1760537696941,2.44277792,4093.7,4093.6,0.002]
[1760537697251,2.44259975,4094.0,4093.6,0.002]
[1760537697453,2.44265861,4093.9,4093.6,0.002]
[1760537697636,1.728,4094.6,4093.6,0.002]
[1760537697835,2.44254593,4094.1,4093.6,0.002]
[1760537698137,2.44254721,4094.1,4093.6,0.002]
[1760537698331,1.728,4094.0,4093.6,0.002]
[1760537698666,2.4426451,4094.0,4093.6,0.002]
[1760537698861,0.6336,4093.9,4093.6,0.002]
[1760537699161,0.6336,4093.7,4093.6,0.002]
[1760537699364,0.6336,4093.8,4093.6,0.002]
[1760537699666,2.3616,4094.1,4093.6,0.002]
[1760537699829,0.6336,4094.1,4093.6,0.002]
[1760537700276,3.13951007,4095.0,4094.1,2.44249459]
[1760537700451,0.538,4098.8,4094.1,2.44249459]
[1760537700452,0.4604,4095.9,4094.1,2.629]
[1760537700658,0.2371,4096.1,4094.2,0.2105]
[1760537701139,0.4604,4096.4,4094.2,0.2105]
[1760537701468,2.44170454,4095.5,4094.4,2.4423499]
[1760537701766,2.4416336,4095.7,4094.8,2.44207243]
[1760537702066,0.77145062,4095.7,4094.7,2.44216715]
[1760537702235,2.44169401,4095.6,4094.3,2.8385]
[1760537702437,2.44110826,4096.5,4094.5,1.728]
[1760537702632,0.001,4097.1,4096.2,2.44127754]
[1760537702851,0.001,4097.1,4096.1,2.8385]
[1760537703045,2.44081034,4097.0,4096.2,2.44127177]
[1760537703448,0.001,4097.1,4096.1,2.7655]
[1760537703646,2.44081034,4097.0,4096.1,5.20683555]
[1760537703857,0.66105016,4097.0,4096.1,2.7655]
[1760537704058,2.44099646,4096.7,4096.1,2.7655]
[1760537704286,1.728,4096.8,4096.1,2.7655]
[1760537704595,0.001,4097.1,4096.5,2.44106052]
[1760537704893,0.001,4097.1,4096.9,2.4408609]
[1760537705182,0.001,4097.1,4096.9,2.628]
[1760537705387,0.001,4097.1,4096.9,5.06886593]
[1760537705549,0.001,4097.1,4096.9,2.628]
[1760537705891,0.001,4097.1,4096.1,0.2105]
[1760537706104,0.001,4097.1,4096.2,2.075]
[1760537706305,2.44127193,4096.3,4095.8,0.2105]
[1760537706510,3.07447697,4096.9,4095.9,2.628]
[1760537706796,0.1216,4096.4,4095.9,2.628]
[1760537707151,0.1216,4096.4,4096.0,2.44135608]
[1760537707480,2.44092217,4096.9,4095.9,5.19106446]
[1760537707481,0.1216,4096.6,4095.9,5.19106446]
[1760537707804,0.1216,4096.6,4095.9,2.7496]
[1760537708148,0.6336,4097.0,4096.3,2.4412261]
[1760537708484,0.1216,4096.9,4096.3,0.48826323]
[1760537708657,0.001,4097.1,4095.9,2.8385]
[1760537708865,0.1216,4097.0,4096.3,0.1216]
[1760537709050,0.001,4097.1,4096.6,0.1216]
[1760537709249,0.001,4097.1,4096.9,2.4408618]
[1760537709476,0.001,4097.1,4096.7,2.627]
[1760537709477,0.001,4097.1,4097.0,2.56241034]
[1760537710149,0.001,4097.1,4097.0,0.1216]
[1760537710356,0.001,4097.1,4097.0,2.56241034]
[1760537710579,0.001,4097.1,4097.0,3.53594388]
[1760537710887,0.001,4097.1,4096.1,2.44130487]
[1760537710888,2.44081034,4097.0,4095.3,0.2105]
[1760537711052,1.728,4096.7,4095.3,0.2105]
[1760537711250,0.2348,4096.9,4095.3,0.2105]
[1760537711251,0.2348,4096.9,4095.4,0.0090381]
[1760537711450,0.001,4097.1,4095.8,7.637396]
[1760537711672,0.001,4097.1,4097.0,2.44081034]
[1760537711917,0.001,4097.1,4097.0,5.31189137]
[1760537712121,0.001,4097.1,4097.0,5.52239137]
[1760537712604,0.001,4097.1,4097.0,7.25039137]
[1760537712823,0.001,4097.6,4097.5,2.4405125]
[1760537713007,0.001,4097.6,4097.5,8.5989435]
[1760537713222,0.001,4098.0,4097.5,10.80799635]
[1760537713369,0.001,4098.0,4097.9,4.96749628]
[1760537713578,0.001,4098.0,4097.9,8.54553128]
[1760537713816,0.001,4099.9,4098.1,1.728]
[1760537713997,0.001,4099.9,4098.3,1.728]
[1760537714318,0.001,4099.9,4099.8,2.43914337]
[1760537714616,0.001,4099.9,4099.8,2.626]
[1760537714972,0.001,4099.9,4099.7,2.43918013]
[1760537715274,0.001,4099.9,4099.8,2.626]
[1760537715906,0.001,4099.9,4098.4,0.4775]
[1760537716115,2.43961187,4099.1,4098.2,0.2105]
[1760537716310,0.6336,4099.6,4098.2,0.2105]
[1760537716608,2.3616,4099.8,4098.3,2.625]
[1760537716811,0.001,4099.9,4099.1,2.43950345]
[1760537717107,0.001,4099.9,4099.2,2.649395]
[1760537717318,2.1899,4099.8,4098.5,2.625]
[1760537717517,3.30825751,4098.6,4098.5,2.625]
[1760537717684,3.77015751,4098.6,4098.5,2.625]
[1760537717890,0.6336,4098.5,4097.3,0.2105]
[1760537718088,2.44038269,4097.8,4096.9,2.65136204]
[1760537718304,0.4619,4098.4,4097.0,2.625]
[1760537718305,0.8684,4098.2,4097.0,2.625]
[1760537718489,0.2348,4098.2,4097.1,0.28355]
[1760537718683,2.44027428,4097.9,4097.1,0.28355]
[1760537718976,2.44027428,4097.9,4096.9,0.2105]
[1760537718977,0.2348,4098.2,4096.9,0.2105]
[1760537719195,0.6336,4098.0,4097.0,0.265]
[1760537719399,2.44075077,4097.1,4097.0,0.604]
[1760537719595,0.6336,4097.0,4095.9,2.44141577]
[1760537719796,2.44104791,4096.7,4096.0,0.87]
[1760537720098,0.6336,4097.0,4096.0,0.87]
[1760537720099,0.6336,4097.0,4096.2,2.44122989]
[1760537720432,2.4403914,4097.8,4096.2,2.44122989]
[1760537720433,0.6336,4098.1,4096.5,2.44110826]
[1760537720600,3.07382044,4098.0,4097.0,2.44080241]
[1760537720799,0.1216,4097.8,4097.2,0.1216]
[1760537721119,0.1216,4097.8,4097.3,0.02065986]
[1760537721435,2.56194479,4097.8,4097.2,0.1216]
[1760537721737,0.2348,4098.2,4097.2,0.51873876]
[1760537721899,0.1216,4098.1,4097.4,0.1216]
[1760537722095,0.1216,4098.1,4097.4,2.56216071]
[1760537722404,0.6336,4098.0,4097.2,0.51873876]
[1760537722609,0.1216,4097.8,4097.2,0.64033876]
[1760537722907,0.1216,4097.8,4097.3,2.44063091]
[1760537723109,0.6336,4098.1,4097.4,0.14600572]
[1760537723110,0.1216,4098.1,4097.4,0.14600572]
[1760537723437,2.44002607,4098.4,4097.3,0.57059697]
[1760537723438,2.44003505,4098.4,4097.3,0.57059697]
[1760537723597,0.1216,4098.1,4097.4,0.1216]
[1760537723803,2.44028882,4097.9,4097.4,0.1216]
[1760537724012,2.67511411,4097.9,4097.4,0.1216]
[1760537724346,0.1216,4098.3,4097.6,0.1216]
[1760537724831,0.2348,4097.7,4096.2,0.57526279]
[1760537725142,0.1216,4097.4,4095.9,2.624]
[1760537725298,0.6336,4097.5,4096.0,2.8864]
[1760537725504,0.4619,4097.3,4096.0,2.624]
[1760537725801,0.4619,4097.3,4096.1,2.44133577]
[1760537726122,0.6336,4097.2,4096.0,2.624]
[1760537726307,0.6336,4096.7,4096.0,2.624]
[1760537726509,0.4619,4097.8,4096.1,0.2624]
[1760537726716,0.6336,4097.5,4096.4,2.44112368]
[1760537727025,0.6336,4097.6,4096.2,2.44123229]
[1760537727221,0.6336,4097.3,4096.3,2.44117971]
[1760537727532,2.44082106,4097.0,4096.2,2.44127887]
[1760537727710,2.44091476,4096.9,4096.2,0.77691043]
[1760537728035,0.6336,4097.2,4096.3,2.624]
[1760537728201,2.44073721,4097.2,4096.4,2.44116785]
[1760537728400,2.44073815,4097.2,4096.4,2.44113495]
[1760537728602,2.44060649,4097.4,4096.3,2.624]
[1760537728920,0.4619,4098.3,4097.2,2.44064711]
[1760537729121,2.44027725,4097.9,4097.3,2.624]
[1760537729320,2.44033383,4097.8,4097.3,2.624]
[1760537729542,2.44039339,4097.7,4097.3,2.624]
[1760537729951,0.6336,4097.8,4097.3,2.624]
[1760537730425,0.2348,4097.9,4096.3,0.2624]
[1760537730426,0.6336,4097.6,4096.8,2.624]
[1760537730626,2.44036754,4097.8,4096.8,2.624]
[1760537730832,2.44034229,4097.8,4096.8,2.8864]
[1760537731138,2.44004134,4098.3,4097.4,2.44054929]
[1760537731305,3.07370049,4098.2,4097.5,2.624]
[1760537731658,0.2348,4098.6,4096.0,4.16939815]
[1760537731659,0.2348,4097.6,4096.0,0.2105]
[1760537731831,2.44056624,4097.5,4096.1,2.624]
[1760537732148,0.6336,4097.8,4096.2,2.24636287]
[1760537732347,0.6336,4097.9,4096.2,2.24636287]
[1760537732558,2.43906488,4100.0,4096.5,1.728]
[1760537732714,2.43906488,4100.0,4096.4,2.44116785]
[1760537732715,0.2348,4098.7,4098.0,2.44015814]
[1760537732917,0.4619,4099.3,4098.2,2.44009565]
[1760537733254,2.43920708,4099.7,4099.2,0.2105]
[1760537733553,2.43920708,4099.7,4099.2,2.624]
[1760537733554,2.43921633,4099.7,4099.2,2.624]
[1760537733846,2.43927138,4099.6,4099.2,2.624]
[1760537734047,2.43921118,4099.7,4099.2,2.624]
[1760537734451,2.67490512,4099.9,4099.2,2.624]
[1760537734776,0.2358,4099.9,4099.2,5.06344129]
[1760537734940,0.001,4099.9,4099.3,2.43944088]
[1760537735146,0.001,4099.9,4099.3,0.1216]
[1760537735358,0.001,4099.9,4099.8,2.43914337]
[1760537735671,0.001,4099.9,4099.8,5.18474337]
[1760537735881,0.001,4099.9,4099.8,2.7456]
[1760537736632,0.001,4099.9,4099.8,2.624]
[1760537737037,3.77308388,4099.9,4099.8,2.624]
[1760537737254,0.8663,4099.9,4099.8,2.624]
[1760537737428,3.30538388,4099.9,4099.8,2.624]
[1760537737662,0.001,4099.9,4099.8,2.624]
[1760537738483,0.001,4099.9,4099.8,5.33770337]
[1760537738809,0.001,4099.9,4099.8,5.54820337]
[1760537740209,0.001,4099.9,4099.8,5.33770337]
[1760537740403,0.001,4099.9,4099.8,5.06314337]
[1760537740902,0.001,4099.9,4099.8,5.27364337]
[1760537741273,0.001,4099.9,4099.8,7.00164337]
[1760537741470,0.001,4099.9,4099.8,26.59239348]
[1760537741774,0.001,4099.9,4099.8,7.00164337]
[1760537741975,0.001,4099.9,4099.8,6.79114337]
[1760537742620,0.001,4099.9,4099.8,2.624]
[1760537742911,0.7004,4099.9,4099.8,2.624]
[1760537743128,0.7004,4099.9,4098.3,0.50640957]
[1760537743423,0.6336,4099.8,4098.9,2.622]
[1760537743708,0.2327,4099.9,4099.0,0.2622]
[1760537744007,0.0002,4099.9,4099.4,2.43938067]
[1760537744209,0.0002,4099.9,4099.0,0.2622]
[1760537744210,0.0002,4099.9,4099.5,2.622]
[1760537744375,0.0002,4099.9,4099.0,2.70177414]
[1760537744376,0.0002,4099.9,4099.8,2.43914337]
[1760537744576,0.0002,4099.9,4099.8,5.06114337]
[1760537744904,0.0002,4099.9,4099.8,5.81117799]
[1760537745519,0.0002,4099.9,4099.8,7.74967799]
[1760537746779,0.0002,4099.9,4099.8,7.53917799]
[1760537747013,0.0002,4099.9,4099.8,7.74967799]
[1760537747318,0.0002,4099.9,4099.8,7.53917799]
[1760537747616,0.001,4100.4,4099.8,7.53917799]
[1760537747617,0.001,4100.4,4099.9,9.17714388]
[1760537747807,0.001,4100.4,4100.3,2.43884593]
[1760537748117,0.001,4100.4,4100.3,5.05984593]
[1760537748479,0.001,4100.4,4100.3,5.18144593]
[1760537749215,0.001,4100.4,4100.3,2.7426]
[1760537749389,0.001,4100.4,4100.3,2.621]
[1760537749702,0.001,4100.4,4100.3,5.05984593]
[1760537751395,0.001,4100.4,4100.3,2.621]
[1760537751918,0.4687,4100.4,4100.3,2.621]
[1760537752295,2.43909987,4099.9,4098.3,1.3085]
[1760537752614,2.43921164,4099.7,4098.9,2.43962765]
[1760537752815,0.2317,4099.8,4099.0,2.43960082]
[1760537753033,0.2317,4099.8,4099.1,5.06054796]
[1760537753210,0.2317,4099.8,4099.1,2.621]
[1760537753413,0.2317,4099.8,4099.2,2.43950039]
[1760537753725,0.4677,4099.7,4099.2,2.43947357]
[1760537753902,0.4677,4099.6,4099.1,5.06054698]
[1760537754099,0.4678,4099.5,4099.1,2.621]
[1760537754406,0.4678,4099.4,4098.3,1.098]
[1760537754606,2.43954653,4099.2,4098.5,2.43990928]
[1760537754917,1.1014,4099.7,4098.7,2.4397444]
[1760537755112,0.6336,4099.6,4098.4,1.949]
[1760537755436,3.07288413,4099.6,4098.6,2.43983007]
[1760537755604,3.07288413,4099.6,4098.4,1.949]
[1760537755605,3.07287553,4099.6,4098.4,1.949]
[1760537755802,0.6336,4099.6,4098.9,2.43961998]
[1760537756001,3.07286466,4099.6,4099.0,2.62]
[1760537756234,0.6336,4099.6,4099.0,2.62]
[1760537756547,0.6336,4099.6,4099.0,5.05961558]
[1760537756702,0.6336,4099.6,4099.0,5.05960708]
[1760537756902,0.6336,4099.6,4099.0,2.62]
[1760537757527,3.07286343,4099.6,4099.0,2.62]
[1760537757836,3.69401607,4099.6,4099.0,2.62]
[1760537758038,1.25474512,4099.6,4099.1,2.4395178]
[1760537758250,0.2317,4099.8,4099.0,2.62]
[1760537758603,0.2317,4099.8,4099.4,2.43934706]
[1760537758827,0.2317,4099.8,4099.5,5.05930261]
[1760537759029,0.2317,4099.8,4099.6,2.62]
[1760537759243,0.2263,4099.7,4099.6,2.62]
[1760537759543,0.6941,4099.7,4099.6,2.62]
[1760537760046,4.09238221,4099.7,4099.6,2.62]
[1760537760208,0.95907935,4099.7,4099.6,2.62]
[1760537760407,0.1216,4099.8,4099.6,2.62]
[1760537760712,3.54060286,4099.7,4099.6,2.62]
[1760537760935,3.54060286,4099.7,4098.1,0.2105]
[1760537760936,2.43946987,4099.3,4098.1,0.2105]
[1760537761102,0.1216,4099.2,4098.6,0.1216]
[1760537761307,0.6336,4098.6,4097.6,0.002]
[1760537761617,0.6336,4098.6,4097.7,0.454]
[1760537761865,0.6336,4098.4,4097.8,2.44027629]
[1760537762171,0.6336,4098.2,4097.7,0.454]
[1760537762440,0.6336,4097.8,4097.6,0.002]
[1760537762603,0.6336,4097.5,4096.7,0.002]
[1760537762803,4.8022912,4097.2,4096.7,0.002]
[1760537763005,2.3616,4097.2,4096.7,0.002]
[1760537763246,0.6336,4096.8,4096.7,0.002]
[1760537763410,3.0745295,4096.8,4096.7,0.002]
[1760537763603,1.1014,4096.8,4096.7,0.002]
[1760537763800,2.44063702,4097.3,4096.7,0.002]
[1760537763801,0.2263,4097.1,4096.7,0.002]
[1760537764426,0.6336,4097.6,4096.8,2.62]
[1760537764623,0.4678,4098.5,4097.0,2.44081034]
[1760537764839,2.90776486,4098.5,4097.4,2.44051574]
[1760537765045,0.4678,4098.5,4097.4,2.44051574]
[1760537765240,0.6336,4098.4,4097.8,2.44029418]
[1760537765406,2.66611441,4098.7,4097.8,2.44029418]
[1760537765407,0.2263,4098.7,4098.0,2.44016048]
[1760537765602,0.2263,4099.0,4097.2,2.44064475]
[1760537765834,0.2263,4099.0,4097.5,2.4405125]
[1760537766043,0.2263,4099.0,4098.2,2.44003878]
[1760537766713,0.67013,4099.7,4098.3,2.43999212]
[1760537766913,0.2263,4099.9,4098.4,0.02311254]
[1760537767132,0.2263,4099.9,4098.5,1.9425]
[1760537767327,0.4747,4100.3,4099.6,2.43921662]
[1760537767508,0.2141,4100.6,4099.5,2.62]
[1760537767703,0.001,4100.9,4100.3,2.43884593]
[1760537768328,0.001,4100.9,4100.2,2.62]
[1760537768329,0.6346,4100.9,4100.2,2.62]
[1760537768517,0.001,4100.9,4099.8,2.43914337]
[1760537768723,2.43897195,4100.1,4098.8,0.2153]
[1760537768930,0.6336,4099.9,4099.1,2.43950464]
[1760537769126,0.6336,4099.7,4098.9,2.62]
[1760537769342,0.6336,4099.8,4098.9,2.62]
[1760537769641,0.6336,4099.7,4099.0,2.43956892]
[1760537769938,3.07274337,4099.8,4098.8,2.62]
[1760537770142,0.6336,4099.6,4097.8,0.2153]
[1760537770350,3.07338801,4098.8,4097.9,3.27527428]
[1760537770652,0.2141,4098.9,4097.0,0.2153]
[1760537770653,0.6336,4097.7,4097.0,0.2153]
[1760537770820,0.2141,4097.6,4097.1,2.62]
[1760537771025,0.6336,4098.4,4097.6,2.44041292]
[1760537771333,2.43980383,4098.7,4097.1,2.62]
[1760537771334,0.1216,4098.0,4097.9,2.44027428]
[1760537771558,2.43925237,4099.7,4097.9,2.44027428]
[1760537771559,0.2141,4100.1,4098.0,1.728]
[1760537771738,0.1216,4099.2,4098.0,1.728]
[1760537771904,0.1216,4099.2,4098.3,0.1216]
[1760537772109,0.1216,4099.2,4098.8,2.43969371]
[1760537772438,2.43909005,4099.9,4099.0,2.43956371]
[1760537772646,0.1216,4099.4,4099.1,2.43954464]
[1760537772943,0.5963,4099.4,4098.6,2.7406]
[1760537773138,0.5963,4099.4,4099.0,2.43960677]
[1760537773438,0.1216,4099.4,4098.6,2.7406]
[1760537773644,0.6336,4098.6,4097.6,0.002]
[1760537773815,0.6336,4099.1,4097.6,2.621]
[1760537774145,0.6336,4099.7,4097.7,1.9433]
[1760537774330,9.86998611,4100.7,4097.6,2.621]
[1760537774331,2.43866961,4100.6,4098.7,2.43979798]
[1760537774528,2.43867546,4100.6,4098.8,2.63666293]
[1760537774726,2.4386776,4100.6,4098.8,2.619]
[1760537774927,2.43978816,4100.4,4098.8,2.619]
[1760537775126,0.001,4100.4,4098.9,0.28629678]
[1760537775340,0.001,4100.4,4099.0,0.2153]
[1760537775558,0.001,4100.4,4099.1,1.75239559]
[1760537775740,0.001,4100.4,4100.3,2.65414593]
[1760537776081,0.001,4100.4,4100.3,5.78245501]
[1760537776233,0.001,4100.4,4100.3,5.99775501]
[1760537777234,0.001,4100.4,4100.3,24.58886101]
[1760537777459,0.001,4101.3,4100.8,2.43854857]
[1760537777659,0.001,4101.3,4100.8,19.13683718]
[1760537777959,0.001,4101.3,4101.2,2.43831073]
[1760537778148,0.001,4101.3,4101.2,6.78531073]
[1760537778353,0.001,4101.3,4101.2,7.00061073]
[1760537778535,0.001,4101.3,4101.2,10.70112673]
[1760537778739,0.2141,4104.0,4102.3,2.43765692]
[1760537778740,2.43687678,4103.7,4102.3,2.43765692]
[1760537778932,0.4747,4103.9,4102.3,5.54419696]
[1760537779137,0.4747,4103.9,4102.3,5.75949696]
[1760537779537,0.2141,4104.0,4102.3,5.75949696]
[1760537779538,0.2141,4104.0,4102.3,7.48749696]
[1760537779841,0.2141,4104.0,4102.3,5.04984004]
[1760537780041,0.2141,4104.0,4102.3,5.54947709]
[1760537780246,0.2141,4104.0,4103.3,2.4370543]
[1760537780447,0.2141,4104.0,4103.4,2.618]
[1760537780745,0.4747,4103.9,4103.4,2.618]
[1760537780947,0.4747,4103.8,4103.4,2.618]
[1760537781270,0.2141,4104.0,4103.4,2.618]
[1760537781271,2.43694407,4103.5,4103.4,2.618]
[1760537781564,2.91164407,4103.5,4103.4,2.618]
[1760537781966,0.4747,4103.5,4103.4,2.618]
[1760537782265,0.6336,4103.9,4103.4,2.618]
[1760537782464,3.54524407,4103.5,4103.4,2.618]
[1760537782664,2.43740959,4102.8,4101.3,0.49463189]